[Event "Titled Tuesday Blitz November 14 Early 2023"]
[White "Parkhov, Yair"]
[Black "Gholami Orimi, Mahdi"]
[WhiteFideId "2813408"]
[BlackFideId "12558486"]
[WhiteElo "2633"]
[BlackElo "2968"]
[Result "0-1"]
[Round "2"]
[TimeControl "180+1"]
[Date "2023.11.14"]
[WhiteClock "0:00:01"]
[BlackClock "0:00:44"]
[Board "22"]

1. d4 {[%clk 0:03:00]}  Nf6 {[%clk 0:02:59]} 2. c4 {[%clk 0:03:00]}  e6 {[%clk 0:02:59]} 3. Nf3 {[%clk 0:03:00]}  d5 {[%clk 0:02:58]} 4. g3 {[%clk 0:03:01]}  Bb4+ {[%clk 0:02:57]} 5. Bd2 {[%clk 0:03:00]}  Be7 {[%clk 0:02:57]} 6. Qc2 {[%clk 0:02:58]}  O-O {[%clk 0:02:54]} 7. Bg2 {[%clk 0:02:57]}  c6 {[%clk 0:02:52]} 8. O-O {[%clk 0:02:57]}  Nbd7 {[%clk 0:02:48]} 9. Rc1 {[%clk 0:02:56]}  Ne4 {[%clk 0:02:47]} 10. Be1 {[%clk 0:02:55]}  f5 {[%clk 0:02:46]} 11. Nc3 {[%clk 0:02:51]}  Nd6 {[%clk 0:02:44]} 12. cxd5 {[%clk 0:02:37]}  exd5 {[%clk 0:02:45]} 13. e3 {[%clk 0:02:37]}  Bf6 {[%clk 0:02:34]} 14. Ne2 {[%clk 0:02:37]}  g5 {[%clk 0:02:28]} 15. Bb4 {[%clk 0:02:34]}  Be7 {[%clk 0:02:26]} 16. Ne5 {[%clk 0:02:31]}  Nf6 {[%clk 0:02:20]} 17. a4 {[%clk 0:02:19]}  Be6 {[%clk 0:02:14]} 18. a5 {[%clk 0:02:07]}  a6 {[%clk 0:02:13]} 19. Nc3 {[%clk 0:01:54]}  f4 {[%clk 0:02:06]} 20. exf4 {[%clk 0:01:50]}  gxf4 {[%clk 0:02:05]} 21. Ne2 {[%clk 0:01:46]}  fxg3 {[%clk 0:02:01]} 22. hxg3 {[%clk 0:01:46]}  Bf5 {[%clk 0:01:56]} 23. Qd1 {[%clk 0:01:34]}  Nfe4 {[%clk 0:01:56]} 24. Nf4 {[%clk 0:01:32]}  Bg5 {[%clk 0:01:56]} 25. Ra3 {[%clk 0:01:01]}  Kh8 {[%clk 0:01:45]} 26. Qh5 {[%clk 0:00:52]}  Bxf4 {[%clk 0:01:37]} 27. gxf4 {[%clk 0:00:53]}  Qf6 {[%clk 0:01:24]} 28. Re1 {[%clk 0:00:39]}  Rg8 {[%clk 0:01:18]} 29. Kf1 {[%clk 0:00:31]}  Rg7 {[%clk 0:01:08]} 30. Bh3 {[%clk 0:00:06]}  Rag8 {[%clk 0:01:00]} 31. Bxd6 {[%clk 0:00:07]}  Nxd6 {[%clk 0:00:50]} 32. Bxf5 {[%clk 0:00:06]}  Nxf5 {[%clk 0:00:49]} 33. Rh3 {[%clk 0:00:07]}  Nxd4 {[%clk 0:00:47]} 34. Rg3 {[%clk 0:00:02]}  Rxg3 {[%clk 0:00:43]} 35. fxg3 {[%clk 0:00:02]}  Rxg3 {[%clk 0:00:44]} 36. Nf7+ {[%clk 0:00:02]}  Kg7 {[%clk 0:00:44]} 37. Re8 {[%clk 0:00:01]}  Qxf4+ {[%clk 0:00:44]} 38. Ke1 {[%clk 0:00:01]}  Rg1# {[%clk 0:00:44]} 0-1


[Site "https://www.chess.com"]

[Event "Titled Tuesday Blitz November 14 Early 2023"]
[White "Matlakov, Maxim"]
[Black "Fromm, Marius"]
[WhiteFideId "4168003"]
[BlackFideId "12993190"]
[WhiteElo "2958"]
[BlackElo "2628"]
[Result "1-0"]
[Round "2"]
[TimeControl "180+1"]
[Date "2023.11.14"]
[WhiteClock "0:00:45"]
[BlackClock "0:00:30"]
[Board "25"]

1. d4 {[%clk 0:03:00]}  Nf6 {[%clk 0:02:59]} 2. Nf3 {[%clk 0:03:00]}  e6 {[%clk 0:02:59]} 3. Bg5 {[%clk 0:03:00]}  d5 {[%clk 0:02:57]} 4. e3 {[%clk 0:02:59]}  Nbd7 {[%clk 0:02:57]} 5. Nbd2 {[%clk 0:02:59]}  h6 {[%clk 0:02:57]} 6. Bf4 {[%clk 0:02:58]}  Bd6 {[%clk 0:02:49]} 7. Bd3 {[%clk 0:02:54]}  O-O {[%clk 0:02:48]} 8. c3 {[%clk 0:02:53]}  Qe7 {[%clk 0:02:45]} 9. Ne5 {[%clk 0:02:50]}  Ne8 {[%clk 0:02:32]} 10. Qg4 {[%clk 0:02:32]}  f5 {[%clk 0:02:24]} 11. Qg3 {[%clk 0:02:29]}  Nxe5 {[%clk 0:02:13]} 12. dxe5 {[%clk 0:02:27]}  Bc5 {[%clk 0:02:13]} 13. Bxh6 {[%clk 0:02:26]}  Bb6 {[%clk 0:01:50]} 14. h4 {[%clk 0:02:25]}  c5 {[%clk 0:01:51]} 15. h5 {[%clk 0:02:25]}  Kh7 {[%clk 0:01:48]} 16. Bg5 {[%clk 0:02:21]}  Qf7 {[%clk 0:01:48]} 17. Nf3 {[%clk 0:02:19]}  Bd7 {[%clk 0:01:44]} 18. Bh4 {[%clk 0:01:59]}  Kh8 {[%clk 0:01:37]} 19. Ng5 {[%clk 0:01:58]}  Qg8 {[%clk 0:01:37]} 20. Nh3 {[%clk 0:01:54]}  Qh7 {[%clk 0:01:27]} 21. Be7 {[%clk 0:01:46]}  Nc7 {[%clk 0:01:19]} 22. Nf4 {[%clk 0:01:33]}  Rf7 {[%clk 0:01:16]} 23. O-O-O {[%clk 0:01:30]}  Kg8 {[%clk 0:01:09]} 24. Ng6 {[%clk 0:01:27]}  Bb5 {[%clk 0:01:05]} 25. Bxb5 {[%clk 0:01:18]}  Nxb5 {[%clk 0:01:06]} 26. h6 {[%clk 0:01:18]}  gxh6 {[%clk 0:01:03]} 27. Bf6 {[%clk 0:01:17]}  Rxf6 {[%clk 0:00:48]} 28. exf6 {[%clk 0:01:16]}  Kf7 {[%clk 0:00:49]} 29. Nf4 {[%clk 0:00:54]}  Bc7 {[%clk 0:00:49]} 30. Qh4 {[%clk 0:00:48]}  Rg8 {[%clk 0:00:45]} 31. Qh5+ {[%clk 0:00:46]}  Kxf6 {[%clk 0:00:36]} 32. Qxh6+ {[%clk 0:00:46]}  Qxh6 {[%clk 0:00:37]} 33. Rxh6+ {[%clk 0:00:46]}  Kf7 {[%clk 0:00:30]} 34. Nxe6 {[%clk 0:00:45]} 1-0


[Site "https://www.chess.com"]

[Event "Titled Tuesday Blitz November 14 Early 2023"]
[White "Kuzhylnyi, Oleksandr"]
[Black "Mitrabha, Guha"]
[WhiteFideId "34110500"]
[BlackFideId "5057000"]
[WhiteElo "2625"]
[BlackElo "2952"]
[Result "0-1"]
[Round "2"]
[TimeControl "180+1"]
[Date "2023.11.14"]
[WhiteClock "0:00:32"]
[BlackClock "0:00:43"]
[Board "27"]

1. b3 {[%clk 0:03:00]}  d5 {[%clk 0:02:54]} 2. Bb2 {[%clk 0:03:01]}  Bg4 {[%clk 0:02:53]} 3. Nf3 {[%clk 0:03:00]}  Bxf3 {[%clk 0:02:49]} 4. gxf3 {[%clk 0:03:01]}  Nf6 {[%clk 0:02:50]} 5. e3 {[%clk 0:03:00]}  g6 {[%clk 0:02:50]} 6. c4 {[%clk 0:02:58]}  c6 {[%clk 0:02:50]} 7. cxd5 {[%clk 0:02:41]}  cxd5 {[%clk 0:02:50]} 8. Bxf6 {[%clk 0:02:40]}  exf6 {[%clk 0:02:49]} 9. Nc3 {[%clk 0:02:33]}  d4 {[%clk 0:02:47]} 10. Nb5 {[%clk 0:02:31]}  Nc6 {[%clk 0:02:45]} 11. Qc2 {[%clk 0:02:18]}  f5 {[%clk 0:02:30]} 12. Qc4 {[%clk 0:01:58]}  Bg7 {[%clk 0:02:27]} 13. Rd1 {[%clk 0:01:45]}  O-O {[%clk 0:02:26]} 14. f4 {[%clk 0:01:38]}  Rc8 {[%clk 0:02:23]} 15. Bg2 {[%clk 0:01:35]}  a6 {[%clk 0:02:06]} 16. Na3 {[%clk 0:01:35]}  dxe3 {[%clk 0:01:58]} 17. fxe3 {[%clk 0:01:28]}  Qe7 {[%clk 0:01:41]} 18. Nb1 {[%clk 0:01:18]}  Nd4 {[%clk 0:01:31]} 19. Qd5 {[%clk 0:01:09]}  Nc2+ {[%clk 0:01:20]} 20. Ke2 {[%clk 0:01:05]}  Rc7 {[%clk 0:01:08]} 21. h4 {[%clk 0:00:57]}  Rd8 {[%clk 0:01:06]} 22. Qa5 {[%clk 0:00:54]}  Rc5 {[%clk 0:01:00]} 23. Qb6 {[%clk 0:00:50]}  Rb5 {[%clk 0:00:46]} 24. Qa7 {[%clk 0:00:32]}  Bd4 {[%clk 0:00:43]} 0-1


[Site "https://www.chess.com"]

[Event "Titled Tuesday Blitz November 14 Early 2023"]
[White "FoxOnTheRun97"]
[Black "Khismatullin, Denis"]
[BlackFideId "4142578"]
[WhiteElo "2622"]
[BlackElo "2941"]
[Result "0-1"]
[Round "2"]
[TimeControl "180+1"]
[Date "2023.11.14"]
[WhiteClock "0:00:31"]
[BlackClock "0:01:07"]
[Board "28"]

1. d4 {[%clk 0:03:00]}  d5 {[%clk 0:02:59]} 2. c4 {[%clk 0:03:00]}  e6 {[%clk 0:02:59]} 3. Nc3 {[%clk 0:03:01]}  Nf6 {[%clk 0:02:59]} 4. cxd5 {[%clk 0:03:01]}  exd5 {[%clk 0:02:59]} 5. Bg5 {[%clk 0:03:01]}  c6 {[%clk 0:02:59]} 6. e3 {[%clk 0:03:02]}  h6 {[%clk 0:03:00]} 7. Bh4 {[%clk 0:03:00]}  Be7 {[%clk 0:03:00]} 8. Bd3 {[%clk 0:03:00]}  O-O {[%clk 0:03:01]} 9. Qc2 {[%clk 0:02:57]}  Re8 {[%clk 0:03:00]} 10. Nge2 {[%clk 0:02:56]}  Nbd7 {[%clk 0:02:53]} 11. O-O {[%clk 0:02:55]}  Nh5 {[%clk 0:02:47]} 12. Bxe7 {[%clk 0:02:50]}  Qxe7 {[%clk 0:02:48]} 13. a3 {[%clk 0:02:42]}  Nf8 {[%clk 0:02:46]} 14. b4 {[%clk 0:02:38]}  a6 {[%clk 0:02:46]} 15. Rab1 {[%clk 0:02:30]}  Bg4 {[%clk 0:02:38]} 16. a4 {[%clk 0:02:20]}  Nf6 {[%clk 0:02:34]} 17. Nf4 {[%clk 0:02:12]}  Rad8 {[%clk 0:02:24]} 18. b5 {[%clk 0:02:07]}  axb5 {[%clk 0:02:23]} 19. axb5 {[%clk 0:02:07]}  c5 {[%clk 0:02:22]} 20. dxc5 {[%clk 0:02:05]}  Qxc5 {[%clk 0:02:22]} 21. Na4 {[%clk 0:02:01]}  Qxc2 {[%clk 0:02:14]} 22. Bxc2 {[%clk 0:02:02]}  d4 {[%clk 0:02:14]} 23. Nc5 {[%clk 0:01:52]}  dxe3 {[%clk 0:02:03]} 24. Nxb7 {[%clk 0:01:42]}  Rd2 {[%clk 0:02:01]} 25. Ba4 {[%clk 0:01:24]}  e2 {[%clk 0:01:55]} 26. Rfe1 {[%clk 0:01:22]}  Rd4 {[%clk 0:01:47]} 27. Nc5 {[%clk 0:01:03]}  Rxf4 {[%clk 0:01:46]} 28. b6 {[%clk 0:01:04]}  Rb8 {[%clk 0:01:44]} 29. b7 {[%clk 0:01:03]}  Ne6 {[%clk 0:01:21]} 30. Na6 {[%clk 0:01:00]}  Rxb7 {[%clk 0:01:21]} 31. Rxb7 {[%clk 0:00:58]}  Rxa4 {[%clk 0:01:22]} 32. Nc7 {[%clk 0:00:52]}  Nc5 {[%clk 0:01:18]} 33. Rb8+ {[%clk 0:00:50]}  Kh7 {[%clk 0:01:18]} 34. f3 {[%clk 0:00:50]}  Nd3 {[%clk 0:01:18]} 35. fxg4 {[%clk 0:00:38]}  Nxe1 {[%clk 0:01:17]} 36. Kf2 {[%clk 0:00:38]}  Nxg2 {[%clk 0:01:12]} 37. Kxe2 {[%clk 0:00:38]}  Rxg4 {[%clk 0:01:12]} 38. Kf3 {[%clk 0:00:35]}  Nh4+ {[%clk 0:01:11]} 39. Ke3 {[%clk 0:00:35]}  Rg2 {[%clk 0:01:09]} 40. h3 {[%clk 0:00:35]}  Rg3+ {[%clk 0:01:08]} 41. Kf4 {[%clk 0:00:35]}  Rf3+ {[%clk 0:01:07]} 42. Ke5 {[%clk 0:00:31]}  Nd7+ {[%clk 0:01:07]} 0-1


[Site "https://www.chess.com"]

[Event "Titled Tuesday Blitz November 14 Early 2023"]
[White "Baskakov, Egor"]
[Black "Gontcharov, Vladislav"]
[WhiteFideId "24197866"]
[BlackFideId "4123492"]
[WhiteElo "2918"]
[BlackElo "2617"]
[Result "1-0"]
[Round "2"]
[TimeControl "180+1"]
[Date "2023.11.14"]
[WhiteClock "0:00:05"]
[BlackClock "0:00:00"]
[Board "32"]

1. e4 {[%clk 0:03:00]}  e6 {[%clk 0:02:56]} 2. Nc3 {[%clk 0:03:00]}  d6 {[%clk 0:02:49]} 3. g3 {[%clk 0:03:01]}  d5 {[%clk 0:02:45]} 4. Bg2 {[%clk 0:03:01]}  Nf6 {[%clk 0:02:44]} 5. Nge2 {[%clk 0:02:57]}  dxe4 {[%clk 0:02:43]} 6. Nxe4 {[%clk 0:02:58]}  Nxe4 {[%clk 0:02:43]} 7. Bxe4 {[%clk 0:02:59]}  Nd7 {[%clk 0:02:41]} 8. O-O {[%clk 0:02:58]}  Nf6 {[%clk 0:02:40]} 9. Bg2 {[%clk 0:02:58]}  h5 {[%clk 0:02:38]} 10. h3 {[%clk 0:02:58]}  e5 {[%clk 0:02:20]} 11. d3 {[%clk 0:02:56]}  Be7 {[%clk 0:02:18]} 12. d4 {[%clk 0:02:56]}  exd4 {[%clk 0:02:07]} 13. Nxd4 {[%clk 0:02:56]}  c6 {[%clk 0:02:05]} 14. c3 {[%clk 0:02:52]}  g6 {[%clk 0:02:04]} 15. Re1 {[%clk 0:02:51]}  O-O {[%clk 0:02:03]} 16. Qc2 {[%clk 0:02:43]}  Nd5 {[%clk 0:01:45]} 17. Ne6 {[%clk 0:02:31]}  Bxe6 {[%clk 0:01:40]} 18. Rxe6 {[%clk 0:02:31]}  Bf6 {[%clk 0:01:39]} 19. Bh6 {[%clk 0:02:02]}  Bg7 {[%clk 0:01:32]} 20. Bxg7 {[%clk 0:01:58]}  Kxg7 {[%clk 0:01:31]} 21. Re5 {[%clk 0:01:58]}  Nf6 {[%clk 0:01:28]} 22. Rae1 {[%clk 0:01:54]}  Qd6 {[%clk 0:01:21]} 23. Qb3 {[%clk 0:01:36]}  b5 {[%clk 0:00:57]} 24. c4 {[%clk 0:01:32]}  h4 {[%clk 0:00:38]} 25. g4 {[%clk 0:01:29]}  bxc4 {[%clk 0:00:35]} 26. Qxc4 {[%clk 0:01:26]}  Rac8 {[%clk 0:00:35]} 27. Qc3 {[%clk 0:01:03]}  Kg8 {[%clk 0:00:31]} 28. Re7 {[%clk 0:00:54]}  Nd5 {[%clk 0:00:30]} 29. Qd4 {[%clk 0:00:42]}  Qb8 {[%clk 0:00:22]} 30. Rd7 {[%clk 0:00:26]}  Rcd8 {[%clk 0:00:18]} 31. Qxa7 {[%clk 0:00:20]}  Qxb2 {[%clk 0:00:17]} 32. Rxd8 {[%clk 0:00:16]}  Rxd8 {[%clk 0:00:16]} 33. Bxd5 {[%clk 0:00:16]}  cxd5 {[%clk 0:00:15]} 34. a4 {[%clk 0:00:15]}  d4 {[%clk 0:00:15]} 35. Qe7 {[%clk 0:00:15]}  Qb8 {[%clk 0:00:11]} 36. Rd1 {[%clk 0:00:11]}  d3 {[%clk 0:00:11]} 37. Qxh4 {[%clk 0:00:10]}  d2 {[%clk 0:00:10]} 38. Qg5 {[%clk 0:00:11]}  Qd6 {[%clk 0:00:09]} 39. a5 {[%clk 0:00:10]}  Rd7 {[%clk 0:00:08]} 40. a6 {[%clk 0:00:09]}  Qxa6 {[%clk 0:00:08]} 41. Rxd2 {[%clk 0:00:08]}  Rxd2 {[%clk 0:00:08]} 42. Qxd2 {[%clk 0:00:08]}  Qa1+ {[%clk 0:00:08]} 43. Kg2 {[%clk 0:00:08]}  Qe5 {[%clk 0:00:09]} 44. Qd8+ {[%clk 0:00:07]}  Kg7 {[%clk 0:00:08]} 45. Qd3 {[%clk 0:00:08]}  Kg8 {[%clk 0:00:06]} 46. Qf3 {[%clk 0:00:08]}  Kg7 {[%clk 0:00:05]} 47. Qg3 {[%clk 0:00:09]}  Qe4+ {[%clk 0:00:05]} 48. Kh2 {[%clk 0:00:09]}  Kg8 {[%clk 0:00:04]} 49. h4 {[%clk 0:00:10]}  Qe2 {[%clk 0:00:04]} 50. Kg2 {[%clk 0:00:10]}  Kg7 {[%clk 0:00:03]} 51. Qf4 {[%clk 0:00:09]}  Kg8 {[%clk 0:00:03]} 52. Kg3 {[%clk 0:00:08]}  Qd3+ {[%clk 0:00:02]} 53. f3 {[%clk 0:00:08]}  Qf1 {[%clk 0:00:02]} 54. Qe3 {[%clk 0:00:05]}  Qb5 {[%clk 0:00:02]} 55. Kh3 {[%clk 0:00:03]}  Qf1+ {[%clk 0:00:01]} 56. Kg3 {[%clk 0:00:04]}  Qb5 {[%clk 0:00:01]} 57. Qf2 {[%clk 0:00:04]}  Qc4 {[%clk 0:00:00]} 58. Kg2 {[%clk 0:00:05]} 1-0


[Site "https://www.chess.com"]

[Event "Titled Tuesday Blitz November 14 Early 2023"]
[White "Wadsworth, Matthew J"]
[Black "Rustemov, Alexander"]
[WhiteFideId "415804"]
[BlackFideId "4119002"]
[WhiteElo "2611"]
[BlackElo "2916"]
[Result "1/2-1/2"]
[Round "2"]
[TimeControl "180+1"]
[Date "2023.11.14"]
[WhiteClock "0:00:05"]
[BlackClock "0:00:14"]
[Board "33"]

1. Nf3 {[%clk 0:03:00]}  d5 {[%clk 0:02:59]} 2. g3 {[%clk 0:03:01]}  Nf6 {[%clk 0:02:59]} 3. Bg2 {[%clk 0:03:01]}  Bf5 {[%clk 0:03:00]} 4. c4 {[%clk 0:03:01]}  dxc4 {[%clk 0:02:57]} 5. Na3 {[%clk 0:02:59]}  c6 {[%clk 0:02:52]} 6. Nxc4 {[%clk 0:02:58]}  Nbd7 {[%clk 0:02:41]} 7. O-O {[%clk 0:02:58]}  e6 {[%clk 0:02:38]} 8. d3 {[%clk 0:02:58]}  Be7 {[%clk 0:02:33]} 9. Rb1 {[%clk 0:02:58]}  a5 {[%clk 0:02:29]} 10. b3 {[%clk 0:02:55]}  O-O {[%clk 0:02:28]} 11. a3 {[%clk 0:02:55]}  h6 {[%clk 0:02:18]} 12. b4 {[%clk 0:02:53]}  axb4 {[%clk 0:02:17]} 13. axb4 {[%clk 0:02:54]}  Nd5 {[%clk 0:02:14]} 14. Bd2 {[%clk 0:02:50]}  Bh7 {[%clk 0:02:05]} 15. b5 {[%clk 0:02:49]}  Qc7 {[%clk 0:01:58]} 16. bxc6 {[%clk 0:02:40]}  bxc6 {[%clk 0:01:59]} 17. e4 {[%clk 0:02:36]}  N5b6 {[%clk 0:01:39]} 18. Bf4 {[%clk 0:02:36]}  Qd8 {[%clk 0:01:38]} 19. Nfe5 {[%clk 0:02:20]}  Nxe5 {[%clk 0:01:31]} 20. Nxe5 {[%clk 0:02:21]}  Rc8 {[%clk 0:01:29]} 21. Qb3 {[%clk 0:02:08]}  Nd7 {[%clk 0:01:28]} 22. Nxd7 {[%clk 0:02:02]}  Qxd7 {[%clk 0:01:29]} 23. Rfc1 {[%clk 0:02:01]}  Rfd8 {[%clk 0:01:27]} 24. Qb7 {[%clk 0:01:45]}  c5 {[%clk 0:01:25]} 25. Be3 {[%clk 0:01:33]}  Bf8 {[%clk 0:01:19]} 26. Qxd7 {[%clk 0:01:25]}  Rxd7 {[%clk 0:01:20]} 27. Rb3 {[%clk 0:01:22]}  g5 {[%clk 0:01:09]} 28. f3 {[%clk 0:01:14]}  Bg7 {[%clk 0:01:05]} 29. Rxc5 {[%clk 0:01:10]}  Rcd8 {[%clk 0:00:56]} 30. Rcb5 {[%clk 0:01:04]}  Bd4 {[%clk 0:00:52]} 31. Bxd4 {[%clk 0:01:02]}  Rxd4 {[%clk 0:00:52]} 32. Bf1 {[%clk 0:01:03]}  Ra4 {[%clk 0:00:49]} 33. Rb7 {[%clk 0:00:56]}  Ra1 {[%clk 0:00:46]} 34. Kf2 {[%clk 0:00:52]}  Bg6 {[%clk 0:00:44]} 35. Be2 {[%clk 0:00:47]}  Kg7 {[%clk 0:00:43]} 36. Rb1 {[%clk 0:00:44]}  Rda8 {[%clk 0:00:41]} 37. Rxa1 {[%clk 0:00:41]}  Rxa1 {[%clk 0:00:42]} 38. f4 {[%clk 0:00:41]}  Ra2 {[%clk 0:00:39]} 39. Ke3 {[%clk 0:00:39]}  Kf6 {[%clk 0:00:32]} 40. h4 {[%clk 0:00:35]}  gxh4 {[%clk 0:00:30]} 41. gxh4 {[%clk 0:00:36]}  h5 {[%clk 0:00:29]} 42. Rb5 {[%clk 0:00:34]}  Ra1 {[%clk 0:00:28]} 43. Bxh5 {[%clk 0:00:29]}  Rh1 {[%clk 0:00:26]} 44. Bxg6 {[%clk 0:00:28]}  fxg6 {[%clk 0:00:26]} 45. h5 {[%clk 0:00:22]}  gxh5 {[%clk 0:00:25]} 46. Rb6 {[%clk 0:00:22]}  Kf7 {[%clk 0:00:24]} 47. Kd4 {[%clk 0:00:22]}  Ra1 {[%clk 0:00:21]} 48. Rb7+ {[%clk 0:00:17]}  Kg6 {[%clk 0:00:20]} 49. Ke5 {[%clk 0:00:17]}  Ra6 {[%clk 0:00:18]} 50. d4 {[%clk 0:00:15]}  h4 {[%clk 0:00:18]} 51. Rb8 {[%clk 0:00:13]}  Kg7 {[%clk 0:00:18]} 52. Rb1 {[%clk 0:00:12]}  Kg6 {[%clk 0:00:18]} 53. Rg1+ {[%clk 0:00:12]}  Kh5 {[%clk 0:00:19]} 54. d5 {[%clk 0:00:12]}  exd5 {[%clk 0:00:18]} 55. exd5 {[%clk 0:00:13]}  h3 {[%clk 0:00:18]} 56. d6 {[%clk 0:00:12]}  Ra2 {[%clk 0:00:18]} 57. d7 {[%clk 0:00:08]}  Rd2 {[%clk 0:00:17]} 58. Ke6 {[%clk 0:00:08]}  Re2+ {[%clk 0:00:16]} 59. Kf5 {[%clk 0:00:07]}  Rd2 {[%clk 0:00:16]} 60. Rg7 {[%clk 0:00:07]}  Kh4 {[%clk 0:00:16]} 61. Rh7+ {[%clk 0:00:06]}  Kg3 {[%clk 0:00:17]} 62. Ke6 {[%clk 0:00:04]}  h2 {[%clk 0:00:16]} 63. f5 {[%clk 0:00:03]}  Re2+ {[%clk 0:00:15]} 64. Kf7 {[%clk 0:00:03]}  Rd2 {[%clk 0:00:15]} 65. Ke8 {[%clk 0:00:03]}  Re2+ {[%clk 0:00:16]} 66. Kd8 {[%clk 0:00:04]}  Rf2 {[%clk 0:00:16]} 67. Rh5 {[%clk 0:00:03]}  Kg4 {[%clk 0:00:15]} 68. Rh8 {[%clk 0:00:03]}  Kxf5 {[%clk 0:00:15]} 69. Rf8+ {[%clk 0:00:03]}  Kg4 {[%clk 0:00:15]} 70. Rh8 {[%clk 0:00:04]}  Kg3 {[%clk 0:00:15]} 71. Kc8 {[%clk 0:00:04]}  Rc2+ {[%clk 0:00:14]} 72. Kb8 {[%clk 0:00:04]}  Rd2 {[%clk 0:00:14]} 73. Kc8 {[%clk 0:00:04]}  Rc2+ {[%clk 0:00:13]} 74. Kb8 {[%clk 0:00:05]}  Rd2 {[%clk 0:00:13]} 75. Kc8 {[%clk 0:00:05]}  Kg2 {[%clk 0:00:13]} 76. Rxh2+ {[%clk 0:00:04]}  Kxh2 {[%clk 0:00:13]} 77. d8=Q {[%clk 0:00:04]}  Rxd8+ {[%clk 0:00:14]} 78. Kxd8 {[%clk 0:00:05]} 1/2-1/2


[Site "https://www.chess.com"]

[Event "Titled Tuesday Blitz November 14 Early 2023"]
[White "Chigaev, Maksim"]
[Black "Ezat, Mohamed"]
[WhiteFideId "4108116"]
[BlackFideId "10600906"]
[WhiteElo "2908"]
[BlackElo "2610"]
[Result "1/2-1/2"]
[Round "2"]
[TimeControl "180+1"]
[Date "2023.11.14"]
[WhiteClock "0:00:56"]
[BlackClock "0:00:57"]
[Board "34"]

1. e4 {[%clk 0:02:59]}  e5 {[%clk 0:02:58]} 2. Nf3 {[%clk 0:02:58]}  Nc6 {[%clk 0:02:59]} 3. Nc3 {[%clk 0:02:56]}  Nf6 {[%clk 0:02:58]} 4. g3 {[%clk 0:02:56]}  d5 {[%clk 0:02:58]} 5. exd5 {[%clk 0:02:57]}  Nxd5 {[%clk 0:02:59]} 6. Bg2 {[%clk 0:02:58]}  Nxc3 {[%clk 0:02:59]} 7. bxc3 {[%clk 0:02:59]}  Bc5 {[%clk 0:02:58]} 8. O-O {[%clk 0:02:59]}  O-O {[%clk 0:02:58]} 9. Re1 {[%clk 0:03:00]}  Bg4 {[%clk 0:02:53]} 10. h3 {[%clk 0:02:59]}  Bh5 {[%clk 0:02:52]} 11. g4 {[%clk 0:02:50]}  Bg6 {[%clk 0:02:52]} 12. d3 {[%clk 0:02:51]}  e4 {[%clk 0:02:50]} 13. Ng5 {[%clk 0:02:43]}  e3 {[%clk 0:02:46]} 14. d4 {[%clk 0:02:34]}  exf2+ {[%clk 0:02:31]} 15. Kxf2 {[%clk 0:02:31]}  Nxd4 {[%clk 0:02:31]} 16. Be3 {[%clk 0:02:10]}  Ne6 {[%clk 0:01:38]} 17. Qxd8 {[%clk 0:02:08]}  Raxd8 {[%clk 0:01:29]} 18. Nxe6 {[%clk 0:02:00]}  fxe6+ {[%clk 0:01:29]} 19. Kg1 {[%clk 0:02:01]}  Bxe3+ {[%clk 0:01:27]} 20. Rxe3 {[%clk 0:02:01]}  c6 {[%clk 0:01:24]} 21. Rxe6 {[%clk 0:01:43]}  Rd2 {[%clk 0:01:19]} 22. Re7 {[%clk 0:01:36]}  Rf7 {[%clk 0:01:00]} 23. Re8+ {[%clk 0:01:13]}  Rf8 {[%clk 0:00:59]} 24. Re7 {[%clk 0:01:13]}  Rf7 {[%clk 0:00:57]} 25. Re8+ {[%clk 0:00:55]}  Rf8 {[%clk 0:00:57]} 26. Re7 {[%clk 0:00:56]} 1/2-1/2


[Site "https://www.chess.com"]

[Event "Titled Tuesday Blitz November 14 Early 2023"]
[White "GatoRojo150"]
[Black "Zhigalko, Sergei"]
[BlackFideId "13502956"]
[WhiteElo "2609"]
[BlackElo "2903"]
[Result "1-0"]
[Round "2"]
[TimeControl "180+1"]
[Date "2023.11.14"]
[WhiteClock "0:00:58"]
[BlackClock "0:00:02"]
[Board "35"]

1. e4 {[%clk 0:03:00]}  c5 {[%clk 0:02:59]} 2. Nf3 {[%clk 0:03:01]}  Nc6 {[%clk 0:02:58]} 3. Nc3 {[%clk 0:03:01]}  Nf6 {[%clk 0:02:58]} 4. d4 {[%clk 0:03:01]}  cxd4 {[%clk 0:02:58]} 5. Nxd4 {[%clk 0:03:02]}  e5 {[%clk 0:02:59]} 6. Ndb5 {[%clk 0:03:02]}  d6 {[%clk 0:02:59]} 7. Bg5 {[%clk 0:03:02]}  a6 {[%clk 0:02:59]} 8. Na3 {[%clk 0:03:03]}  b5 {[%clk 0:03:00]} 9. Bxf6 {[%clk 0:03:03]}  gxf6 {[%clk 0:03:00]} 10. Nd5 {[%clk 0:03:04]}  Bg7 {[%clk 0:03:00]} 11. c3 {[%clk 0:03:03]}  f5 {[%clk 0:03:01]} 12. Bd3 {[%clk 0:03:02]}  Be6 {[%clk 0:03:00]} 13. Nxb5 {[%clk 0:03:03]}  axb5 {[%clk 0:03:00]} 14. Bxb5 {[%clk 0:03:03]}  Bd7 {[%clk 0:03:01]} 15. exf5 {[%clk 0:03:04]}  O-O {[%clk 0:03:01]} 16. Qg4 {[%clk 0:03:04]}  Kh8 {[%clk 0:02:53]} 17. O-O {[%clk 0:03:02]}  Ne7 {[%clk 0:01:54]} 18. Qxg7+ {[%clk 0:02:57]}  Kxg7 {[%clk 0:01:51]} 19. f6+ {[%clk 0:02:57]}  Kg8 {[%clk 0:00:31]} 20. fxe7 {[%clk 0:02:55]}  Qc8 {[%clk 0:00:31]} 21. Bxd7 {[%clk 0:02:53]}  Qb7 {[%clk 0:00:27]} 22. exf8=Q+ {[%clk 0:02:44]}  Kxf8 {[%clk 0:00:25]} 23. c4 {[%clk 0:02:06]}  Qxb2 {[%clk 0:00:09]} 24. a4 {[%clk 0:02:05]}  Ra5 {[%clk 0:00:07]} 25. Bb5 {[%clk 0:02:05]}  h5 {[%clk 0:00:06]} 26. Rae1 {[%clk 0:01:59]}  h4 {[%clk 0:00:05]} 27. h3 {[%clk 0:01:56]}  Qc2 {[%clk 0:00:05]} 28. f4 {[%clk 0:01:55]}  Qd2 {[%clk 0:00:03]} 29. fxe5 {[%clk 0:01:53]}  Qd4+ {[%clk 0:00:03]} 30. Kh1 {[%clk 0:01:53]}  dxe5 {[%clk 0:00:04]} 31. Re2 {[%clk 0:01:47]}  Ra7 {[%clk 0:00:04]} 32. Ne3 {[%clk 0:01:43]}  Qd3 {[%clk 0:00:04]} 33. c5 {[%clk 0:01:39]}  Qc3 {[%clk 0:00:04]} 34. c6 {[%clk 0:01:35]}  Ra8 {[%clk 0:00:03]} 35. Nf5 {[%clk 0:01:26]}  f6 {[%clk 0:00:02]} 36. Nxh4 {[%clk 0:01:24]}  Kf7 {[%clk 0:00:02]} 37. Nf3 {[%clk 0:01:23]}  Kg7 {[%clk 0:00:02]} 38. Nh4 {[%clk 0:01:19]}  Rd8 {[%clk 0:00:02]} 39. Nf5+ {[%clk 0:01:19]}  Kf7 {[%clk 0:00:03]} 40. Re3 {[%clk 0:01:15]}  Qc5 {[%clk 0:00:02]} 41. Ref3 {[%clk 0:01:16]}  Rd2 {[%clk 0:00:02]} 42. Nh6+ {[%clk 0:01:15]}  Ke7 {[%clk 0:00:02]} 43. Rxf6 {[%clk 0:01:07]}  Qd5 {[%clk 0:00:03]} 44. Rf7+ {[%clk 0:01:01]}  Ke6 {[%clk 0:00:02]} 45. R1f6# {[%clk 0:00:58]} 1-0


[Site "https://www.chess.com"]